fUSD/lending_fUSD_20240615
["ID","MTS","AMOUNT","RATE_DAILY","PERIOD"]
[329557615,1718434286484,-1031.45,0.00022465,3]
[329557616,1718434286496,-500.0,0.00022465,3]
[329557617,1718434286517,-500.0,0.00022465,3]
[329557618,1718434286533,-500.0,0.00022465,3]
[329557619,1718434286543,-533.87,0.00022465,3]
[329557620,1718434286560,-500.0,0.00022465,3]
[329557621,1718434286584,-500.0,0.00022465,3]
[329557622,1718434286596,-500.0,0.00022465,3]
[329557623,1718434286608,-500.0,0.00022465,3]
[329557624,1718434286622,-500.0,0.00022465,3]
[329557625,1718434286635,-500.0,0.00022465,3]
[329557626,1718434286653,-500.0,0.00022465,3]
[329557627,1718434286668,-500.0,0.00022465,3]
[329557628,1718434286680,-969.17,0.00022465,3]
[329557629,1718434286692,-500.0,0.00022465,3]
[329557630,1718434286717,-500.0,0.00022465,3]
[329557631,1718434286736,-674.39,0.00022465,3]
[329557632,1718434286760,-500.0,0.00022465,3]
[329557633,1718434286771,-500.0,0.00022465,3]
[329557634,1718434286783,-500.0,0.00022465,3]
[329557635,1718434286793,-500.0,0.00022465,3]
[329557636,1718434286804,-274.10690521,0.00022465,3]
[329557637,1718434292309,2400.06586953,0.0001499,2]
[329557638,1718434396468,180.08,0.00026137,120]
[329557639,1718434548098,1021.37853193,0.00027,60]
[329557640,1718434933272,1339.04550243,0.000275,120]
[329557641,1718435231114,-250.0,0.00014232,2]
[329557642,1718435243207,-36.0,0.00014232,2]
[329557643,1718435243261,-119.03333476,0.00014236,2]
[329557644,1718435304692,3000.0,0.00014234,2]
[329557650,1718435434540,-165.60822621,0.00014133,2]
[329557651,1718435434812,-8427.64214039,0.00014232,2]
[329557652,1718435434824,-300.0,0.00014232,2]
[329557653,1718435434849,-348.18949365,0.00014234,2]
[329557654,1718435434872,-2328.88870357,0.00014235,2]
[329557655,1718435434892,-2461.27345951,0.00014237,2]
[329557656,1718435434903,-436.41837903,0.00014239,2]
[329557657,1718435434921,-195.87692784,0.00014988,2]
[329557658,1718435434945,-543.13864305,0.00014989,2]
[329557659,1718435434983,-18575.47378682,0.0001499,2]
[329557660,1718435435023,-1097.13878616,0.0001499,2]
[329557661,1718435435048,-420.0,0.00015588,2]
[329557662,1718435435076,-587.0,0.00017073,2]
[329557663,1718435435109,-1000.0,0.00017189,2]
[329557664,1718435435178,-150.99,0.00017189,2]
[329557665,1718435435191,-475.77,0.0001719,2]
[329557666,1718435435210,-999.99,0.0001719,2]
[329557667,1718435435231,-9717.63,0.0001719,2]
[329557668,1718435435282,-499.99,0.0001719,2]
[329557669,1718435435308,-462.51,0.0001726,2]
[329557670,1718435435321,-167.34,0.00018646,2]
[329557671,1718435435335,-250.0,0.00018646,2]
[329557672,1718435435353,-823.0,0.000187,2]
[329557673,1718435435381,-1662.14,0.00018773,2]
[329557674,1718435435408,-150.0,0.00018821,2]
[329557675,1718435435419,-200.0,0.00018859,2]
[329557676,1718435435456,-250.0,0.00018909,2]
[329557677,1718435435483,-625.4,0.00018935,2]
[329557678,1718435435540,-1058.9,0.00018936,2]
[329557679,1718435435561,-200.0,0.00018936,2]
[329557681,1718435435573,-534.64,0.00018965,2]
[329557683,1718435435632,-931.95,0.00019028,2]
[329557684,1718435435644,-1589.86,0.00019133,2]
[329557686,1718435435677,-475.77,0.00019454,2]
[329557689,1718435435687,-161.1,0.00019565,2]
[329557690,1718435435702,-161.1,0.0001957,2]
[329557694,1718435435740,-161.1,0.00019575,2]
[329557696,1718435435754,-161.1,0.0001958,2]
[329557698,1718435435794,-161.1,0.00019585,2]
[329557700,1718435435811,-161.1,0.00019591,2]
[329557702,1718435435843,-161.1,0.00019596,2]
[329557704,1718435435853,-161.1,0.00019601,2]
[329557706,1718435435881,-161.1,0.00019606,2]
[329557708,1718435435901,-161.1,0.00019611,2]
[329557710,1718435435913,-161.1,0.00019616,2]
[329557712,1718435435926,-161.1,0.00019622,2]
[329557714,1718435435939,-161.1,0.00019627,2]
[329557716,1718435435955,-161.1,0.00019632,2]
[329557718,1718435435977,-161.1,0.00019637,2]
[329557719,1718435435998,-161.1,0.00019642,2]
[329557721,1718435436040,-161.1,0.00019647,2]
[329557723,1718435436052,-161.1,0.00019652,2]
[329557725,1718435436078,-161.1,0.00019658,2]
[329557727,1718435436091,-161.1,0.00019663,2]
[329557730,1718435436110,-169.69,0.00019702,2]
[329557731,1718435436128,-424.29232079,0.00019724,2]
[329557733,1718435436153,-752.83867739,0.0001997,2]
[329557735,1718435436184,-1152.0,0.00020483,2]
[329557737,1718435436260,-167.34,0.00020511,2]
[329557739,1718435436289,-1302.76719431,0.00020819,2]
[329557742,1718435436344,-180.08,0.0002091,2]
[329557743,1718435436356,-1250.0,0.00021,2]
[329557744,1718435436401,-534.64,0.00021335,2]
[329557745,1718435436412,-151.0,0.0002149,2]
[329557746,1718435436448,-475.77,0.00021718,2]
[329557747,1718435436493,-5396.84360143,0.00021816,2]
[329557748,1718435436525,-8707.6649,0.00021817,2]
[329557749,1718435436557,-698.4351,0.00021817,2]
[329557750,1718435436576,-268.7507,0.00021817,2]
[329557751,1718435436588,-6223.573,0.00021817,2]
[329557752,1718435436606,-3753.1223,0.00021817,2]
[329557753,1718435436617,-330.57400712,0.00021817,2]
[329557754,1718435436632,-716.43861302,0.00021817,2]
[329557755,1718435436655,-346.24604523,0.00021873,2]
[329557756,1718435436678,-1243.61395477,0.00021873,2]
[329557757,1718435436692,-1708.49206676,0.00021915,2]
[329557758,1718435436709,-625.3983,0.00021915,2]
[329557759,1718435436793,-798.03776957,0.00021915,2]
[329557760,1718435436808,-571.32722916,0.00021916,2]
[329557761,1718435436856,-87.95097999,0.00021916,2]
[329557762,1718435436883,-500.0,0.00021917,2]
[329557763,1718435436895,-500.0,0.00021917,2]
[329557764,1718435436933,-500.0,0.00021917,2]
[329557765,1718435436954,-500.0,0.00021917,2]
[329557766,1718435436973,-500.0,0.00021917,2]
[329557767,1718435437018,-500.0,0.00021917,2]
[329557768,1718435437056,-500.0,0.00021917,2]
[329557769,1718435437083,-500.0,0.00021917,2]
[329557770,1718435437112,-500.0,0.00021917,2]
[329557771,1718435437134,-500.0,0.00021917,2]
[329557772,1718435437171,-500.0,0.00021917,2]
[329557773,1718435437219,-500.0,0.00021917,2]
[329557774,1718435437275,-500.0,0.00021917,2]
[329557775,1718435437357,-500.0,0.00021917,2]
[329557776,1718435437370,-500.0,0.00021917,2]
[329557777,1718435437395,-500.0,0.00021917,2]
[329557778,1718435437408,-349.06779513,0.00021917,2]
[329557779,1718435437716,-614.7279758,0.00014231,2]
[329557780,1718435437760,-428.101543,0.00014231,2]
[329557781,1718435437777,-1329.96772729,0.00014231,2]
[329557782,1718435437794,-150.93220487,0.00021917,2]
[329557783,1718435437806,-500.0,0.00021917,2]
[329557784,1718435437818,-500.0,0.00021917,2]
[329557785,1718435437856,-707.83,0.00021917,2]
[329557786,1718435437875,-500.0,0.00021917,2]
[329557787,1718435437909,-500.0,0.00021917,2]
[329557788,1718435437940,-500.0,0.00021917,2]
[329557789,1718435437975,-500.0,0.00021917,2]
[329557790,1718435437991,-500.0,0.00021917,2]
[329557791,1718435438008,-500.0,0.00021917,2]
[329557792,1718435438020,-500.0,0.00021917,2]
[329557793,1718435438055,-500.0,0.00021917,2]
[329557794,1718435438072,-517.59012444,0.00021917,2]
[329557795,1718435438093,-771.5,0.00021917,2]
[329557796,1718435438107,-500.0,0.00021917,2]
[329557797,1718435438119,-500.0,0.00021917,2]
[329557798,1718435438144,-500.0,0.00021917,2]
[329557799,1718435438157,-500.0,0.00021917,2]
[329557800,1718435438176,-500.0,0.00021917,2]
[329557801,1718435438191,-500.0,0.00021917,2]
[329557802,1718435438206,-740.54,0.00021917,2]
[329557803,1718435438218,-500.0,0.00021917,2]
[329557804,1718435438234,-500.0,0.00021917,2]
[329557805,1718435438281,-500.0,0.00021917,2]
[329557806,1718435438299,-500.0,0.00021917,2]
[329557807,1718435438316,-500.0,0.00021917,2]
[329557808,1718435438328,-500.0,0.00021917,2]
[329557809,1718435438363,-500.0,0.00021917,2]
[329557810,1718435438398,-500.0,0.00021917,2]
[329557811,1718435438409,-500.0,0.00021917,2]
[329557812,1718435438464,-500.0,0.00021917,2]
[329557813,1718435438478,-500.0,0.00021917,2]
[329557814,1718435438489,-500.0,0.00021917,2]
[329557815,1718435438502,-500.0,0.00021917,2]
[329557816,1718435438525,-500.0,0.00021917,2]
[329557817,1718435438542,-545.00796291,0.00021917,2]
[329557818,1718435438564,-500.0,0.00021917,2]
[329557819,1718435438610,-500.0,0.00021917,2]
[329557820,1718435438624,-500.0,0.00021917,2]
[329557821,1718435438641,-500.0,0.00021917,2]
[329557822,1718435438660,-635.14145447,0.00021917,2]
[329557823,1718435438677,-500.0,0.00021917,2]
[329557824,1718435438689,-500.0,0.00021917,2]
[329557825,1718435438702,-500.0,0.00021917,2]
[329557826,1718435438719,-500.0,0.00021917,2]
[329557827,1718435438736,-500.0,0.00021917,2]
[329557828,1718435438754,-500.0,0.00021917,2]
[329557829,1718435438772,-500.0,0.00021917,2]
[329557830,1718435438785,-500.0,0.00021917,2]
[329557831,1718435438815,-500.0,0.00021917,2]
[329557832,1718435438836,-824.09,0.00021917,2]
[329557833,1718435438848,-531.28796557,0.00021917,2]
[329557834,1718435438861,-500.0,0.00021917,2]
[329557835,1718435438872,-500.0,0.00021917,2]
[329557836,1718435438916,-500.0,0.00021917,2]
[329557837,1718435438988,-554.5,0.00021917,2]
[329557838,1718435439028,-500.0,0.00021917,2]
[329557839,1718435439048,-500.0,0.00021917,2]
[329557840,1718435439062,-500.0,0.00021917,2]
[329557841,1718435439117,-500.0,0.00021917,2]
[329557843,1718435439129,-500.0,0.00021917,2]
[329557845,1718435439152,-500.0,0.00021917,2]
[329557846,1718435439163,-500.0,0.00021917,2]
[329557847,1718435439174,-500.0,0.00021917,2]
[329557848,1718435439207,-500.0,0.00021917,2]
[329557849,1718435439245,-521.62028173,0.00021917,2]
[329557850,1718435439284,-500.0,0.00021917,2]
[329557851,1718435439309,-516.29675534,0.00021917,2]
[329557852,1718435439351,-500.0,0.00021917,2]
[329557853,1718435439369,-500.0,0.00021917,2]
[329557854,1718435439381,-500.0,0.00021917,2]
[329557855,1718435439394,-500.0,0.00021917,2]
[329557856,1718435439405,-383.92664162,0.00021917,2]
[329557857,1718435439418,-196.97197387,0.00021917,2]
[329557858,1718435439429,-500.0,0.00021917,2]
[329557859,1718435439441,-500.0,0.00021917,2]
[329557860,1718435439491,-500.0,0.00021917,2]
[329557861,1718435439537,-599.71,0.00021917,2]
[329557862,1718435439553,-500.0,0.00021917,2]
[329557863,1718435439600,-500.0,0.00021917,2]
[329557864,1718435439642,-500.0,0.00021917,2]
[329557865,1718435439654,-502.96,0.00021917,2]
[329557866,1718435439678,-500.0,0.00021917,2]
[329557867,1718435439720,-500.0,0.00021917,2]
[329557868,1718435439736,-500.0,0.00021917,2]
[329557869,1718435439788,-500.0,0.00021917,2]
[329557870,1718435439846,-500.0,0.00021917,2]
[329557875,1718435439864,-500.0,0.00021917,2]
[329557878,1718435439891,-500.0,0.00021917,2]
[329557882,1718435439913,-500.0,0.00021917,2]
[329557887,1718435439934,-822.0,0.00021917,2]
[329557890,1718435439946,-500.0,0.00021917,2]
[329557895,1718435439964,-500.0,0.00021917,2]
[329557901,1718435439993,-500.0,0.00021917,2]
[329557906,1718435440009,-500.0,0.00021917,2]
[329557910,1718435440025,-500.0,0.00021917,2]
[329557913,1718435440041,-500.0,0.00021917,2]
[329557917,1718435440064,-500.0,0.00021917,2]
[329557923,1718435440089,-500.0,0.00021917,2]
[329557926,1718435440112,-500.0,0.00021917,2]
[329557928,1718435440124,-500.0,0.00021917,2]
[329557931,1718435440137,-807.24,0.00021917,2]
[329557932,1718435440160,-500.0,0.00021917,2]
[329557935,1718435440172,-500.0,0.00021917,2]
[329557939,1718435440200,-500.0,0.00021917,2]
[329557944,1718435440228,-500.0,0.00021917,2]
[329557948,1718435440252,-500.0,0.00021917,2]
[329557951,1718435440277,-500.0,0.00021917,2]
[329557954,1718435440292,-500.0,0.00021917,2]
[329557956,1718435440344,-500.0,0.00021917,2]
[329557959,1718435440383,-500.0,0.00021917,2]
[329557961,1718435440436,-500.0,0.00021917,2]
[329557962,1718435440465,-500.0,0.00021917,2]
[329557963,1718435440484,-500.0,0.00021917,2]
[329557964,1718435440516,-611.01,0.00021917,2]
[329557970,1718435440683,-647.29,0.00021917,2]
[329557972,1718435440714,-508.17455818,0.00021917,2]
[329557974,1718435440728,-500.0,0.00021917,2]
[329557976,1718435440745,-500.0,0.00021917,2]
[329557979,1718435440804,-500.0,0.00021917,2]
[329557981,1718435440815,-500.0,0.00021917,2]
[329557983,1718435440836,-1289.88,0.00021917,2]
[329557985,1718435440881,-500.0,0.00021917,2]
[329557986,1718435440893,-829.91,0.00021917,2]
[329557987,1718435440906,-980.82,0.00021917,2]
[329557989,1718435440936,-500.0,0.00021917,2]
[329557991,1718435440957,-500.0,0.00021917,2]
[329557992,1718435440971,-1155.63,0.00021917,2]
[329557993,1718435440993,-500.0,0.00021917,2]
[329557994,1718435441012,-500.0,0.00021917,2]
[329557995,1718435441023,-557.85,0.00021917,2]
[329557996,1718435441034,-433.48643665,0.00021917,2]
[329557997,1718435441068,-500.0,0.00021917,2]
[329557999,1718435441081,-500.0,0.00021917,2]
[329558001,1718435441097,-737.15,0.00021917,2]
[329558003,1718435441120,-1487.32,0.00021917,2]
[329558004,1718435441134,-500.0,0.00021917,2]
[329558006,1718435441155,-506.76215394,0.00021917,2]
[329558009,1718435441172,-690.67,0.00021917,2]
[329558011,1718435441234,-1389.77,0.00021917,2]
[329558012,1718435441257,-593.69526874,0.00021917,2]
[329558013,1718435441310,-692.2,0.00021917,2]
[329558014,1718435441352,-500.0,0.00021917,2]
[329558015,1718435441370,-831.05,0.00021917,2]
[329558016,1718435441382,-932.74,0.00021917,2]
[329558017,1718435441393,-500.0,0.00021917,2]
[329558018,1718435441411,-500.0,0.00021917,2]
[329558019,1718435441425,-505.59,0.00021917,2]
[329558020,1718435441439,-1032.95,0.00021917,2]
[329558021,1718435441460,-589.32,0.00021917,2]
[329558022,1718435441484,-500.0,0.00021917,2]
[329558023,1718435441502,-797.23,0.00021917,2]
[329558024,1718435441548,-1276.13,0.00021917,2]
[329558025,1718435441573,-500.0,0.00021917,2]
[329558026,1718435441599,-500.0,0.00021917,2]
[329558027,1718435441641,-500.0,0.00021917,2]
[329558028,1718435441692,-1199.7,0.00021917,2]
[329558029,1718435441724,-500.0,0.00021917,2]
[329558030,1718435441741,-500.0,0.00021917,2]
[329558031,1718435441804,-976.11,0.00021917,2]
[329558032,1718435441815,-855.62,0.00021917,2]
[329558033,1718435441872,-500.0,0.00021917,2]
[329558034,1718435441897,-500.0,0.00021917,2]
[329558035,1718435441927,-500.0,0.00021917,2]
[329558036,1718435441957,-500.0,0.00021917,2]
[329558037,1718435441989,-500.0,0.00021917,2]
[329558038,1718435442005,-500.0,0.00021917,2]
[329558039,1718435442016,-500.0,0.00021917,2]
[329558040,1718435442052,-703.58,0.00021917,2]
[329558041,1718435442083,-500.0,0.00021917,2]
[329558042,1718435442102,-1002.58,0.00021917,2]
[329558043,1718435442123,-500.0,0.00021917,2]
[329558044,1718435442180,-553.63,0.00021917,2]
[329558045,1718435442205,-184.36016762,0.00021917,2]
[329558046,1718435442228,-686.26,0.00021917,2]
[329558047,1718435442256,-500.0,0.00021917,2]
[329558048,1718435442276,-1071.43,0.00021917,2]
[329558049,1718435442287,-583.66,0.00021917,2]
[329558050,1718435442304,-500.0,0.00021917,2]
[329558051,1718435442315,-500.0,0.00021917,2]
[329558052,1718435442327,-902.51,0.00021917,2]
[329558053,1718435442338,-443.29614779,0.00021917,2]
[329558054,1718435442350,-500.0,0.00021917,2]
[329558055,1718435442361,-500.0,0.00021917,2]
[329558056,1718435442371,-790.17,0.00021917,2]
[329558057,1718435442407,-500.0,0.00021917,2]
[329558058,1718435442420,-848.03,0.00021917,2]
[329558059,1718435442432,-500.0,0.00021917,2]
[329558060,1718435442445,-500.0,0.00021917,2]
[329558061,1718435442457,-500.0,0.00021917,2]
[329558062,1718435442470,-1089.4,0.00021917,2]
[329558063,1718435442488,-500.0,0.00021917,2]
[329558064,1718435442517,-650.43,0.00021917,2]
[329558065,1718435442547,-208.51593969,0.00021917,2]
[329558066,1718435442565,-500.0,0.00021917,2]
[329558067,1718435442616,-500.0,0.00021917,2]
[329558068,1718435442632,-718.06,0.00021917,2]
[329558069,1718435442684,-1056.95,0.00021917,2]
[329558070,1718435442695,-500.0,0.00021917,2]
[329558071,1718435442712,-2000.0,0.00021917,2]
[329558072,1718435442723,-500.0,0.00021917,2]
[329558073,1718435442737,-500.0,0.00021917,2]
[329558074,1718435442750,-500.0,0.00021917,2]
[329558075,1718435442769,-519.61735205,0.00021917,2]
[329558076,1718435442782,-500.0,0.00021917,2]
[329558077,1718435442802,-1215.11,0.00021917,2]
[329558078,1718435442827,-500.0,0.00021917,2]
[329558079,1718435442841,-803.0,0.00021917,2]
[329558080,1718435442864,-500.0,0.00021917,2]
[329558081,1718435442886,-500.0,0.00021917,2]
[329558082,1718435442903,-500.0,0.00021917,2]
[329558083,1718435442942,-573.32,0.00021917,2]
[329558084,1718435442958,-500.0,0.00021917,2]
[329558085,1718435442983,-500.0,0.00021917,2]
[329558086,1718435442994,-500.0,0.00021917,2]
[329558087,1718435443009,-500.0,0.00021917,2]
[329558088,1718435443036,-405.79941518,0.00021917,2]
[329558089,1718435443069,-500.0,0.00021917,2]
[329558090,1718435443090,-500.0,0.00021917,2]
[329558091,1718435443121,-500.0,0.00021917,2]
[329558092,1718435443160,-500.0,0.00021917,2]
[329558093,1718435443180,-2731.05,0.00021917,2]
[329558094,1718435443198,-500.0,0.00021917,2]
[329558095,1718435443210,-500.0,0.00021917,2]
[329558096,1718435443227,-500.0,0.00021917,2]
[329558097,1718435443245,-500.0,0.00021917,2]
[329558098,1718435443272,-500.0,0.00021917,2]
[329558099,1718435443284,-500.0,0.00021917,2]
[329558100,1718435443304,-500.0,0.00021917,2]
[329558101,1718435443328,-500.0,0.00021917,2]
[329558102,1718435443356,-500.0,0.00021917,2]
[329558103,1718435443367,-500.0,0.00021917,2]
[329558104,1718435443388,-500.0,0.00021917,2]
[329558105,1718435443403,-500.0,0.00021917,2]
[329558106,1718435443418,-500.0,0.00021917,2]
[329558107,1718435443436,-500.0,0.00021917,2]
[329558108,1718435443461,-500.0,0.00021917,2]
[329558109,1718435443472,-500.0,0.00021917,2]
[329558110,1718435443512,-500.0,0.00021917,2]
[329558111,1718435443540,-500.0,0.00021917,2]
[329558112,1718435443558,-500.0,0.00021917,2]
[329558113,1718435443575,-500.0,0.00021917,2]
[329558114,1718435443586,-963.9,0.00021917,2]
[329558115,1718435443597,-500.0,0.00021917,2]
[329558116,1718435443610,-500.0,0.00021917,2]
[329558117,1718435443620,-500.0,0.00021917,2]
[329558118,1718435443631,-500.0,0.00021917,2]
[329558119,1718435443643,-500.0,0.00021917,2]
[329558120,1718435443654,-500.0,0.00021917,2]
[329558121,1718435443676,-1431.53,0.00021917,2]
[329558122,1718435443692,-607.05000008,0.00021917,2]
[329558123,1718435443703,-500.0,0.00021917,2]
[329558124,1718435443713,-500.0,0.00021917,2]
[329558125,1718435443724,-885.6,0.00021917,2]
[329558126,1718435443776,-500.0,0.00021917,2]
[329558127,1718435443791,-500.0,0.00021917,2]
[329558128,1718435443803,-500.0,0.00021917,2]
[329558129,1718435443814,-500.0,0.00021917,2]
[329558130,1718435443855,-835.96,0.00021917,2]
[329558131,1718435443867,-888.92,0.00021917,2]
[329558132,1718435443893,-500.0,0.00021917,2]
[329558133,1718435443904,-500.0,0.00021917,2]
[329558134,1718435443930,-500.0,0.00021917,2]
[329558135,1718435443940,-500.0,0.00021917,2]
[329558136,1718435443950,-850.81,0.00021917,2]
[329558137,1718435443961,-500.0,0.00021917,2]
[329558138,1718435443973,-500.0,0.00021917,2]
[329558139,1718435444009,-500.0,0.00021917,2]
[329558140,1718435444021,-500.0,0.00021917,2]
[329558141,1718435444032,-500.0,0.00021917,2]
[329558142,1718435444076,-500.0,0.00021917,2]
[329558143,1718435444140,-500.0,0.00021917,2]
[329558144,1718435444152,-508.66,0.00021917,2]
[329558145,1718435444185,-500.0,0.00021917,2]
[329558146,1718435444196,-500.0,0.00021917,2]
[329558147,1718435444207,-523.74973221,0.00021917,2]
[329558148,1718435444221,-500.0,0.00021917,2]
[329558149,1718435444258,-500.0,0.00021917,2]
[329558150,1718435444280,-500.0,0.00021917,2]
[329558151,1718435444308,-500.0,0.00021917,2]
[329558152,1718435444333,-832.43,0.00021917,2]
[329558153,1718435444345,-500.0,0.00021917,2]
[329558154,1718435444372,-587.84823374,0.00021917,2]
[329558155,1718435444385,-500.0,0.00021917,2]
[329558156,1718435444398,-503.64251597,0.00021917,2]
[329558157,1718435444415,-500.0,0.00021917,2]
[329558158,1718435444429,-507.45247181,0.00021917,2]
[329558159,1718435444441,-500.0,0.00021917,2]
[329558160,1718435444457,-503.91342079,0.00021917,2]
[329558161,1718435444474,-500.0,0.00021917,2]
[329558162,1718435444486,-500.0,0.00021917,2]
[329558163,1718435444501,-566.59,0.00021917,2]
[329558164,1718435444513,-671.51,0.00021917,2]
[329558165,1718435444523,-500.0,0.00021917,2]
[329558166,1718435444537,-500.0,0.00021917,2]
[329558167,1718435444557,-500.0,0.00021917,2]
[329558168,1718435444568,-500.0,0.00021917,2]
[329558169,1718435444589,-500.0,0.00021917,2]
[329558170,1718435444616,-500.0,0.00021917,2]
[329558171,1718435444635,-500.0,0.00021917,2]
[329558172,1718435444673,-502.17832535,0.00021917,2]
[329558173,1718435444689,-500.0,0.00021917,2]
[329558174,1718435444707,-500.0,0.00021917,2]
[329558175,1718435444719,-500.0,0.00021917,2]
[329558176,1718435444731,-500.0,0.00021917,2]
[329558177,1718435444751,-500.0,0.00021917,2]
[329558178,1718435444781,-534.54,0.00021917,2]
[329558179,1718435444797,-682.31,0.00021917,2]
[329558180,1718435444808,-500.0,0.00021917,2]
[329558181,1718435444820,-500.0,0.00021917,2]
[329558182,1718435444848,-500.0,0.00021917,2]
[329558183,1718435444871,-500.0,0.00021917,2]
[329558184,1718435444885,-500.0,0.00021917,2]
[329558185,1718435444896,-691.49,0.00021917,2]
[329558186,1718435444917,-500.0,0.00021917,2]
[329558187,1718435444960,-500.0,0.00021917,2]
[329558188,1718435444975,-508.91793636,0.00021917,2]
[329558189,1718435444990,-500.0,0.00021917,2]
[329558190,1718435445039,-606.01,0.00021917,2]
[329558191,1718435445063,-445.98842465,0.00021917,2]
[329558192,1718435445074,-500.0,0.00021917,2]
[329558193,1718435445091,-495.51,0.00021917,2]
[329558194,1718435445109,-500.0,0.00021917,2]
[329558195,1718435445128,-500.0,0.00021917,2]
[329558196,1718435445148,-705.21,0.00021917,2]
[329558197,1718435445167,-500.0,0.00021917,2]
[329558198,1718435445180,-613.4,0.00021917,2]
[329558199,1718435445194,-512.07205297,0.00021917,2]
[329558200,1718435445222,-500.0,0.00021917,2]
[329558201,1718435445234,-500.0,0.00021917,2]
[329558202,1718435445251,-823.04,0.00021917,2]
[329558203,1718435445388,-500.0,0.00021917,2]
[329558204,1718435445402,-500.0,0.00021917,2]
[329558205,1718435445415,-150.0,0.00021917,2]
[329558206,1718435445429,-501.1407796,0.00021917,2]
[329558207,1718435445454,-500.0,0.00021917,2]
[329558208,1718435445465,-500.0,0.00021917,2]
[329558209,1718435445477,-502.13424036,0.00021917,2]
[329558210,1718435445493,-500.0,0.00021917,2]
[329558211,1718435445518,-687.19,0.00021917,2]
[329558212,1718435445543,-500.0,0.00021917,2]
[329558213,1718435445573,-570.33,0.00021917,2]
[329558214,1718435445584,-500.0,0.00021917,2]
[329558215,1718435445596,-500.0,0.00021917,2]
[329558216,1718435445609,-500.0,0.00021917,2]
[329558217,1718435445635,-703.81,0.00021917,2]
[329558218,1718435445647,-500.0,0.00021917,2]
[329558219,1718435445694,-497.02918034,0.00021917,2]
[329558220,1718435445708,-500.0,0.00021917,2]
[329558221,1718435445723,-500.0,0.00021917,2]
[329558222,1718435445738,-500.0,0.00021917,2]
[329558223,1718435445768,-500.0,0.00021917,2]
[329558224,1718435445780,-1101.89,0.00021917,2]
[329558225,1718435445802,-500.0,0.00021917,2]
[329558226,1718435445814,-500.0,0.00021917,2]
[329558227,1718435445827,-496.85673368,0.00021917,2]
[329558228,1718435445845,-500.0,0.00021917,2]
[329558229,1718435445865,-500.0,0.00021917,2]
[329558230,1718435445892,-500.0,0.00021917,2]
[329558231,1718435445910,-500.0,0.00021917,2]
[329558232,1718435445923,-247.83101701,0.00021917,2]
[329558233,1718435445957,-500.0,0.00021917,2]
[329558234,1718435445972,-500.0,0.00021917,2]
[329558235,1718435445986,-500.0,0.00021917,2]
[329558236,1718435446013,-500.0,0.00021917,2]
[329558237,1718435446038,-615.85,0.00021917,2]
[329558238,1718435446064,-770.81,0.00021917,2]
[329558239,1718435446075,-500.0,0.00021917,2]
[329558240,1718435446092,-634.38,0.00021917,2]
[329558241,1718435446104,-500.0,0.00021917,2]